Cogmind - Beta 16.1 @@@ ROGUE MODE // 2026.03.20 @ 07:54:06 Player: FAQ Result: Self-destructed Performance ------------- Evolutions (7) 3500 Regions Visited (19) 3800 Robots Destroyed (90) 450 Value Destroyed (2463) 2463 Prototype IDs (39) 780 Alien Tech Used (0) 0 Bonus (1822) 1822 TOTAL SCORE: 12815 Bonus ------- Follower Combat Kills 37 Entered DSFs 500 Aligned with FarCom 300 Met Warlord at Base 500 MAIN.C Attacked Warlord 500 Friendly Fire -15 Cogmind --------- Core Integrity 637/1300 Matter 190/300 Energy 11/100 System Corruption 8% Temperature Cool (2) Movement Flying (37) Location -3/Research Parts ------- > --- POWER (1) -------- (None) > --- PROPULSION (7) --- Cooled Cesium-ion Thruster Impulse Thruster Array > --- UTILITY (9) ------ Advanced Signal Interpreter Advanced Melee Analysis Suite Advanced Melee Analysis Suite Hacking Suite Hacking Suite System Shield > --- WEAPON (4) ------- (None) > --- INVENTORY (5) ---- Light Antimatter Reactor Medium Storage Unit Sensor Drone Bay (17/20) Mini Grenade Launcher Peak State ------------ > --- POWER ------------ Light Particle Reactor > --- PROPULSION ------- Cooled Cesium-ion Thruster Cooled Cesium-ion Thruster Cooled Cesium-ion Thruster Cooled Cesium-ion Thruster Q-thruster Q-thruster Q-thruster > --- UTILITY ---------- Experimental Power Amplifier Advanced Signal Interpreter Advanced Melee Analysis Suite Advanced Melee Analysis Suite Experimental Weapon Shielding Hacking Suite System Shield Experimental System Shield Sensor Drone Bay > --- WEAPON ----------- Enhanced Gauss Cannon Linear Accelerator Chainsword Kinetic Spear > --- INVENTORY -------- Light Antimatter Reactor Medium Storage Unit Mini Grenade Launcher Axe [Rating: 134] Favorites ----------- Power Cooled Ion Engine Engine Cooled Ion Engine Power Core Micro Fission Core Reactor Light Particle Reactor Propulsion Armored Treads Treads Armored Treads Leg Aluminum Leg Flight Unit Cooled Cesium-ion Thruster Utility Heat Sink Device Heat Sink Storage Medium Storage Unit Processor Advanced Targeting Computer Hackware Hacking Suite Protection Hardened Medium Armor Plating Weapon Precision Beam Rifle Energy Gun Precision Beam Rifle Energy Cannon Heavy Particle Cannon Ballistic Gun Enhanced Autogun Ballistic Cannon Enhanced Gauss Cannon Launcher Rocket Launcher Slashing Weapon Axe Piercing Weapon Kinetic Spear Build | -11 -10 -10 -10 -9 -8 -8 -8 -8 -6 -6 -6 -6 -5 -4 -4 -4 -4 -3 -3 ------- Run | Yrd Mat Min Exi Min Mat Sto Rec Scr Fac Was Fac DSF Fac Fac Upp Upp War Pro Res Slots Evolved 14 | . . . . . 4 . . . 4 . . . 2 2 . . . . 2 Power . | . . . . . . . . . . . . . . . . . . . . Propulsion 5 | . . . . . 2 . . . 2 . . . . . . . . . 1 Utility 7 | . . . . . 2 . . . . . . . 2 2 . . . . 1 Weapon 2 | . . . . . . . . . 2 . . . . . . . . . . Parts Attached 96 | 3 4 . . 5 24 5 1 . 4 . 1 3 23 3 . . 1 1 18 Power 9 | . 1 . . 1 2 1 . . . . . . 2 . . . . . 2 Engine 4 | . 1 . . 1 1 1 . . . . . . . . . . . . . Core 3 | . . . . . 1 . . . . . . . 2 . . . . . . Reactor 2 | . . . . . . . . . . . . . . . . . . . 2 Propulsion 25 | 2 . . . 1 5 . 1 . 1 . . 3 6 . . . . 1 5 Treads 10 | 2 . . . 1 5 . 1 . 1 . . . . . . . . . . Leg . | . . . . . . . . . . . . . . . . . . . . Wheel . | . . . . . . . . . . . . . . . . . . . . Hover . | . . . . . . . . . . . . . . . . . . . . Flight 15 | . . . . . . . . . . . . 3 6 . . . . 1 5 Utility 30 | . 2 . . . 7 1 . . 1 . . . 8 3 . . . . 8 Device 11 | . . . . . 2 . . . 1 . . . 5 1 . . . . 2 Storage 2 | . 1 . . . 1 . . . . . . . . . . . . . . Processor 7 | . 1 . . . 2 . . . . . . . . . . . . . 4 Hackware 6 | . . . . . . . . . . . . . 3 2 . . . . 1 Protection 4 | . . . . . 2 1 . . . . . . . . . . . . 1 Artifact . | . . . . . . . . . . . . . . . . . . . . Weapon 32 | 1 1 . . 3 10 3 . . 2 . 1 . 7 . . . 1 . 3 Energy Gun 12 | 1 . . . 3 5 1 . . . . 1 . . . . . 1 . . Energy Cannon 1 | . . . . . 1 . . . . . . . . . . . . . . Ballistic Gun 4 | . . . . . 1 1 . . 2 . . . . . . . . . . Ballistic Cannon 6 | . 1 . . . . . . . . . . . 4 . . . . . 1 Launcher 3 | . . . . . 3 . . . . . . . . . . . . . . Special Weapon . | . . . . . . . . . . . . . . . . . . . . Impact Weapon . | . . . . . . . . . . . . . . . . . . . . Slashing Weapon 5 | . . . . . . 1 . . . . . . 3 . . . . . 1 Piercing Weapon 1 | . . . . . . . . . . . . . . . . . . . 1 Special Melee Weapon . | . . . . . . . . . . . . . . . . . . . . Unidentified Prototypes 16 | . . . . . 7 2 . . . . 1 . 1 1 . . 1 . 3 Parts Lost 24 | . . . . 2 2 . . . . 2 . . . . . . . 4 14 Power 2 | . . . . . 1 . . . . . . . . . . . . . 1 Propulsion 9 | . . . . . . . . . . 1 . . . . . . . 1 7 Utility 6 | . . . . . . . . . . . . . . . . . . 2 4 Weapon 7 | . . . . 2 1 . . . . 1 . . . . . . . 1 2 Highest Loss Streak 8 | . . . . 1 1 . . . . 2 . . . . . . . 4 8 To Critical Strikes . | . . . . . . . . . . . . . . . . . . . . Average Backups 8 | 4 5 8 9 9 9 9 10 12 11 9 4 4 4 5 5 5 5 4 4 Power . | 1 1 1 1 1 1 . . . . . . . . . . . . . . Propulsion 1 | 2 2 3 4 3 3 1 1 2 . . . . . 1 1 1 1 . . Utility 2 | . . 1 1 1 2 3 3 3 4 4 2 2 1 2 2 2 2 2 1 Weapon 3 | 1 2 3 3 2 2 3 5 6 6 4 2 2 1 2 2 2 2 2 1 Tool/Special . | . . . . . . . . . . . . . . . . . . . . Unused Backups 16 | 7 . . . 2 . 1 . . . 5 . . . . . . . . 1 Power 2 | 1 . . . . . 1 . . . . . . . . . . . . . Propulsion 6 | 4 . . . 2 . . . . . . . . . . . . . . . Utility 3 | 1 . . . . . . . . . 2 . . . . . . . . . Weapon 4 | 1 . . . . . . . . . 2 . . . . . . . . 1 Tool/Special 1 | . . . . . . . . . . 1 . . . . . . . . . Average Slot Usage (%) 93 | . 94 100 100 100 93 99 100 100 98 66 . 8 80 92 94 94 94 89 78 Engine 7 | . 14 14 14 14 6 9 9 9 6 4 . . . . . . . . . Core 1 | . . . . . 2 . . . . . . . 4 5 5 5 5 5 . Treads 23 | . 28 28 28 28 31 36 36 36 39 26 . . . . . . . . . Flight 7 | . . . . . . . . . . . . 8 32 31 31 31 31 31 27 Device 9 | . . . . . 9 9 17 11 6 4 . . 21 15 15 15 15 15 9 Storage 7 | . 14 14 14 14 9 9 9 9 6 4 . . . . . . . . . Processor 7 | . 9 14 14 14 9 9 9 9 6 4 . . . . . . . . 7 Hackware 4 | . . . . . . . . . . . . . 2 24 26 26 26 22 15 Protection 2 | . . . . . 7 8 . 6 5 4 . . . . . . . . . Energy Gun 9 | . 15 14 14 20 17 14 9 9 6 4 . . . . . . . . . Ballistic Gun 2 | . . . . . . 3 9 9 18 13 . . . . . . . . . Ballistic Cannon 4 | . 12 14 14 7 . . . . . . . . 8 10 10 10 10 8 6 Slashing Weapon 1 | . . . . . . . . . . . . . 5 5 5 5 5 5 3 Peak Build Rating 134 | 6 7 7 8 9 38 39 40 40 51 48 7 37 89 96 98 98 105 98 134 Average Rating 44 | 5 6 7 7 8 27 34 39 37 46 31 1 13 77 94 97 97 96 92 101 On Entrance 41 | 6 6 7 7 8 9 34 35 40 36 48 1 1 37 83 96 98 96 96 83 Avg Prop Armor Cover (%) . | . . . . . . . . . . . . . . . . . . . . Naked Turns 76 | . . . . . . . . . . 36 17 23 . . . . . . . Heaviest Build 108 | 11 20 20 20 20 36 102 108 108 108 108 . . 36 32 45 32 32 32 49 Greatest Support 122 | 40 40 40 40 40 80 80 82 82 122 122 3 39 39 36 36 36 36 36 60 Greatest Overweight (x) 1 | . . . . . . 1 1 1 . 1 . . . . 1 . . . 1 Average Overweight (x) . | . . . . . . . 1 1 . . . . . . . . . . . Largest Inventory Capacity 25 | 8 10 10 10 10 25 25 25 25 25 25 5 5 5 5 5 5 5 5 5 Average Capacity 13 | 8 8 10 10 10 10 15 25 25 25 18 5 5 5 5 5 5 5 5 5 Most Carried 16 | 7 8 9 10 10 10 11 12 16 15 13 5 5 5 5 5 5 5 5 5 Average Carried 8 | 4 5 8 9 9 9 10 11 13 12 10 5 5 4 5 5 5 5 4 4 Final Capacity 25 | 8 10 10 10 10 10 25 25 25 25 5 5 5 5 5 5 5 5 5 5 Final Carried 16 | 4 8 9 10 9 10 11 12 16 13 5 5 5 5 5 5 5 5 4 4 Class Distribution -------------------- 68% | Mutant 13% | Hacker-Sprinter 7% | Hacker-Mutant 4% | Scavenger-Mutant Dominant Class ---------------- Mutant | -10/Materials Mutant | -10/Mines Mutant | -10/Exiles Mutant | -9/Mines Mutant | -8/Materials Mutant | -8/Storage Mutant | -8/Recycling Mutant | -8/Scraptown Skirmisher | -6/Factory Skirmisher | -6/Waste Skirmisher | -6/Factory Mutant | -6/DSF Sprinter | -5/Factory Hacker-Sprinter | -4/Factory Hacker-Mutant | -4/Upper Caves Hacker-Mutant | -4/Upper Caves Hacker-Sprinter | -4/Warlord Hacker-Sprinter | -3/Proximity Caves Hacker-Sprinter | -3/Research Resources | -11 -10 -10 -10 -9 -8 -8 -8 -8 -6 -6 -6 -6 -5 -4 -4 -4 -4 -3 -3 ----------- Run | Yrd Mat Min Exi Min Mat Sto Rec Scr Fac Was Fac DSF Fac Fac Upp Upp War Pro Res Matter Collected 2228 | 230 180 32 . 90 499 138 . 34 63 . . 24 245 51 203 21 . 148 270 Remotely . | . . . . . . . . . . . . . . . . . . . . Salvage Created 3463 | 83 389 107 . 181 1099 750 . . 63 . . . 244 51 112 5 . 1 378 Parts 155 | 5 15 6 . 8 48 29 . . 4 . . . 6 6 11 1 . . 16 Haulers Intercepted 9 | . 2 . . . 5 2 . . . . . . . . . . . . . Recyclers Shooed 2 | 1 1 . . . . . . . . . . . . . . . . . . Parts Field Recycled . | . . . . . . . . . . . . . . . . . . . . Retrieved Matter . | . . . . . . . . . . . . . . . . . . . . Parts Self-Destructed 14 | . . . . . . . . . . . . . . . 11 3 . . . Prevented . | . . . . . . . . . . . . . . . . . . . . Parts Restored . | . . . . . . . . . . . . . . . . . . . . Kills | -11 -10 -10 -10 -9 -8 -8 -8 -8 -6 -6 -6 -6 -5 -4 -4 -4 -4 -3 -3 ------- Run | Yrd Mat Min Exi Min Mat Sto Rec Scr Fac Was Fac DSF Fac Fac Upp Upp War Pro Res Combat Hostiles Destroyed 53 | . 6 2 . 4 20 11 . . 1 . . . . . 5 1 . 2 1 Melee 1 | . . . . . . . . . . . . . . . . . . . 1 Guns 29 | . . . . 3 15 10 . . 1 . . . . . . . . . . Cannons 16 | . 6 2 . 1 . . . . . . . . . . 5 1 . 1 . AOE 6 | . . . . . 5 . . . . . . . . . . . . 1 . Classes Destroyed 13 | 2 2 . . 2 6 . . . . . . . . . . . . 1 . Worker 9 | . . . . . 3 1 . . . . . . 2 . . . . . 3 Tunneler 6 | 1 1 2 . . 1 . . . . . . . 1 . . . . . . Hauler 9 | . 2 . . . 5 2 . . . . . . . . . . . . . Recycler 5 | 1 1 . . . . . . . . . . . 1 . . . . . 2 Operator 3 | . . . . . 1 1 . . . . . . . 1 . . . . . Drone 2 | . . . . . . . . . . . . . . . . . . 2 . Watcher 5 | . . . . . 1 1 . . . . . . 1 1 . . . . 1 Swarmer 10 | . . . . . 3 . . . . . . . . . 5 1 . . 1 Grunt 29 | . 6 2 . 2 13 6 . . . . . . . . . . . . . Brawler 2 | . . . . 1 . 1 . . . . . . . . . . . . . Duelist 1 | . . . . 1 . . . . . . . . . . . . . . . Sentry 8 | . . . . . 3 4 . . 1 . . . . . . . . . . Hunter 1 | . . . . . 1 . . . . . . . . . . . . . . Best Kill Streak 7 | 2 3 2 . 2 7 4 . . 1 . . . 4 1 4 1 . 1 5 Combat Bots Only 5 | . 2 2 . 2 5 3 . . 1 . . . . . 4 1 . 1 1 Max Kills in Single Turn 3 | 1 1 1 . 1 3 2 . . 1 . . . 1 1 2 1 . 1 1 Gunslinging 1 | . . . . . 1 . . . . . . . . . . . . . . Exploded 2 | . . . . . 2 . . . . . . . . . . . . 1 . Melee 1 | . . . . . . . . . . . . . . . . . . . 1 Uniques/NPCs Destroyed . | . . . . . . . . . . . . . . . . . . . . Combat | -11 -10 -10 -10 -9 -8 -8 -8 -8 -6 -6 -6 -6 -5 -4 -4 -4 -4 -3 -3 -------- Run | Yrd Mat Min Exi Min Mat Sto Rec Scr Fac Was Fac DSF Fac Fac Upp Upp War Pro Res Hostile Shots Fired 471 | . 26 11 . 22 99 43 . . 9 6 . 22 . . 11 22 2 54 144 Missed 199 | . 6 4 . 4 33 16 . . 5 1 . 10 . . 9 10 2 34 65 Hits 272 | . 20 7 . 18 66 27 . . 4 5 . 12 . . 2 12 . 20 79 Melee 16 | . . . . 4 . . . . . 5 . 7 . . . . . . . Projectile 256 | . 20 7 . 14 66 27 . . 4 . . 5 . . 2 12 . 20 79 AOE 2 | . . . . . . . . . . . . 2 . . . . . . . Critical Strikes 16 | . . 1 . 1 4 . . . . 3 . 4 . . . . . . 3 Actively Blocked 1 | . . . . . . . . . . . . . . . . . . . 1 Part Disruptions 1 | . . . . . . . . . . . . . . . . . . . 1 Damage Taken 5072 | . 218 102 . 283 1033 416 . . 28 190 . 361 . . 28 197 . 434 1782 Core 1406 | . 45 44 . . 110 31 . . . 160 . 252 . . . 42 . 59 663 Absorbed by Shields . | . . . . . . . . . . . . . . . . . . . . Redirected to Shielding 156 | . . . . . . . . . . . . . . . . . . . 156 Regen/Repaired (Parts) 21 | . . . . . . . . . . . . . . . . . 21 . . Core Remaining (%) 80 | 100 . . . 64 . . . 74 . . . 51 100 . . . . 91 . Volleys Fired 188 | 6 35 8 . 15 64 33 . . 2 . . . 4 2 5 7 . 5 2 Largest 4 | 2 2 2 . 2 2 2 . . 4 . . . 2 2 2 2 . 2 2 Hottest 134 | 90 80 80 . 80 122 122 . . 134 . . . 98 98 98 98 . 98 101 Shots Fired 369 | 12 67 16 . 30 122 66 . . 8 . . . 6 4 10 14 . 10 4 Gun 255 | 12 32 8 . 20 109 66 . . 8 . . . . . . . . . . Cannon 106 | . 35 8 . 10 5 . . . . . . . 6 4 10 14 . 10 4 Launcher 8 | . . . . . 8 . . . . . . . . . . . . . . Special . | . . . . . . . . . . . . . . . . . . . . Kinetic 120 | . 35 8 . 10 . 13 . . 6 . . . 6 4 10 14 . 10 4 Thermal 229 | 12 32 8 . 8 114 53 . . 2 . . . . . . . . . . Explosive 8 | . . . . . 8 . . . . . . . . . . . . . . Electromagnetic 12 | . . . . 12 . . . . . . . . . . . . . . . Robot Hit Streak 27 | 2 6 4 . 7 27 25 . . 4 . . . 1 2 3 6 . 2 2 Robot Miss Streak 5 | 3 2 2 . 3 2 2 . . 1 . . . 3 2 3 5 . 5 4 Penetration Max . | . . . . . . . . . . . . . . . . . . . . Secondary Targets 5 | . . . . 1 2 2 . . . . . . . . . . . . . Max Gunslinging Chain 1 | . . . . 1 1 1 . . . . . . . . . . . . . Shots Hit Robots 263 | 6 40 7 . 19 94 55 . . 4 . . . 7 4 4 5 . 3 15 Core Hits 132 | 3 16 5 . 7 55 28 . . 3 . . . 2 3 4 . . . 6 Critical Kills 3 | . . . . . . . . . . . . . 1 . 2 . . . . Critical Parts Destroyed . | . . . . . . . . . . . . . . . . . . . . Critical Strikes 27 | . 5 . . . 6 8 . . 1 . . . 1 . 3 2 . 1 . Burn 16 | . 1 . . . 6 8 . . 1 . . . . . . . . . . Destroy 3 | . . . . . . . . . . . . . 1 . 2 . . . . Blast 8 | . 4 . . . . . . . . . . . . . 1 2 . 1 . Melee Attacks 61 | . . . . . . 1 . . . . . . 6 2 . . . . 52 Impact . | . . . . . . . . . . . . . . . . . . . . Slashing 37 | . . . . . . 1 . . . . . . 6 2 . . . . 28 Piercing 24 | . . . . . . . . . . . . . . . . . . . 24 Sneak Attacks 12 | . . . . . . . . . . . . . 4 1 . . . . 7 Combat Hostiles . | . . . . . . . . . . . . . . . . . . . . Follow-up Attacks 1 | . . . . . . . . . . . . . . . . . . . 1 Damage Inflicted 6466 | 82 664 126 . 280 2420 955 . . 69 . . . 398 192 121 138 . 129 892 Guns 3036 | 82 250 25 . 156 1499 955 . . 69 . . . . . . . . . . Cannons 1251 | . 414 101 . 124 75 . . . . . . . 31 52 121 138 . 129 66 Explosions 846 | . . . . . 846 . . . . . . . . . . . . . . Melee 1333 | . . . . . . . . . . . . . 367 140 . . . . 826 Ramming . | . . . . . . . . . . . . . . . . . . . . Kinetic 1399 | . 414 101 . 124 . 172 . . 51 . . . 31 52 121 138 . 129 66 Thermal 2803 | 82 250 25 . 71 1574 783 . . 18 . . . . . . . . . . Explosive 846 | . . . . . 846 . . . . . . . . . . . . . . Electromagnetic 85 | . . . . 85 . . . . . . . . . . . . . . . Impact . | . . . . . . . . . . . . . . . . . . . . Slashing 1090 | . . . . . . . . . . . . . 367 140 . . . . 583 Piercing 243 | . . . . . . . . . . . . . . . . . . . 243 Highest Corruption 8 | . . . . . . . . . . 8 8 8 . . . . . . 8 Average Corruption 7 | . . . . . . . . . . 8 8 8 . . . . . . 6 Corruption Purged . | . . . . . . . . . . . . . . . . . . . . Corruption Blocked . | . . . . . . . . . . . . . . . . . . . . Effects 12 | . . . . . . . . . . 4 . 1 . . . . . . 7 Message Errors 6 | . . . . . . . . . . 3 . . . . . . . . 3 Matter Fused 1 | . . . . . . . . . . . . . . . . . . . 1 Heat Flow Errors 1 | . . . . . . . . . . . . . . . . . . . 1 Energy Discharges 2 | . . . . . . . . . . 1 . . . . . . . . 1 Alerts 2 | . . . . . . . . . . . . 1 . . . . . . 1 Overload Shots . | . . . . . . . . . . . . . . . . . . . . Overflow Damage 386 | . . . . . 57 . . . . . . . 160 . . 6 . 11 152 Projectiles 17 | . . . . . . . . . . . . . . . . 6 . 11 . Explosions 57 | . . . . . 57 . . . . . . . . . . . . . . Melee 312 | . . . . . . . . . . . . . 160 . . . . . 152 Knockbacks 8 | . 3 . . . . . . . . . . . . . . 2 . 3 . Impact . | . . . . . . . . . . . . . . . . . . . . Kinetic 8 | . 3 . . . . . . . . . . . . . . 2 . 3 . Secondary . | . . . . . . . . . . . . . . . . . . . . Self-Inflicted Damage 43 | . . . . . 43 . . . . . . . . . . . . . . Shots 3 | . . . . . 3 . . . . . . . . . . . . . . Rammed . | . . . . . . . . . . . . . . . . . . . . Targets Rammed . | . . . . . . . . . . . . . . . . . . . . Kicked . | . . . . . . . . . . . . . . . . . . . . Crushed . | . . . . . . . . . . . . . . . . . . . . Highest Temperature 358 | 120 252 180 . 127 358 300 . . 79 . . . 24 9 1 15 1 21 338 Average Temperature 76 | 54 75 83 . 59 102 87 . . 41 . . . 19 6 1 9 1 10 61 Received Heat Transfer 1089 | . 129 81 . 90 513 207 . . 6 . . . . . . . . 18 45 Effects 5 | . . . . . 2 . . . . . . . . . . . . . 3 Interference 5 | . . . . . 2 . . . . . . . . . . . . . 3 Siege Activations . | . . . . . . . . . . . . . . . . . . . . Martial Activations . | . . . . . . . . . . . . . . . . . . . . Shielding Activations . | . . . . . . . . . . . . . . . . . . . . Robots Disrupted . | . . . . . . . . . . . . . . . . . . . . Combat Hostiles . | . . . . . . . . . . . . . . . . . . . . Robots Corrupted . | . . . . . . . . . . . . . . . . . . . . Combat Hostiles . | . . . . . . . . . . . . . . . . . . . . Parts Fried . | . . . . . . . . . . . . . . . . . . . . Impact Corruptions . | . . . . . . . . . . . . . . . . . . . . Robots Melted 1 | . . . . . . 1 . . . . . . . . . . . . . Combat Hostiles 1 | . . . . . . 1 . . . . . . . . . . . . . Parts Melted 17 | . . . . . 12 5 . . . . . . . . . . . . . Heat Transferred 7490 | 223 814 74 . 174 3800 2294 . . 111 . . . . . . . . . . Parts Sabotaged . | . . . . . . . . . . . . . . . . . . . . Parts Stolen . | . . . . . . . . . . . . . . . . . . . . Parts Stripped . | . . . . . . . . . . . . . . . . . . . . Power Chain Reactions . | . . . . . . . . . . . . . . . . . . . . Alert | -11 -10 -10 -10 -9 -8 -8 -8 -8 -6 -6 -6 -6 -5 -4 -4 -4 -4 -3 -3 ------- Run | Yrd Mat Min Exi Min Mat Sto Rec Scr Fac Was Fac DSF Fac Fac Upp Upp War Pro Res Maximum Alert Level 1 | . . . . . . . . . . . . . . . . . . . 1 Low Security (%) 96 | 100 100 100 . 100 100 100 100 . 100 100 100 100 100 100 . . . . 77 Level 1 3 | . . . . . . . . . . . . . . . . . . . 22 Level 2 . | . . . . . . . . . . . . . . . . . . . . Level 3 . | . . . . . . . . . . . . . . . . . . . . Level 4 . | . . . . . . . . . . . . . . . . . . . . Level 5 . | . . . . . . . . . . . . . . . . . . . . High Security . | . . . . . . . . . . . . . . . . . . . . Max Security . | . . . . . . . . . . . . . . . . . . . . Peak Influence 337 | 5 73 50 . 45 181 126 52 . 30 . . . 15 9 . . . . 337 Initial 271 | . . 17 . . . 23 39 . . . . . . . . . . . 271 Average 50 | 1 14 8 . 8 70 52 5 . 5 . . . 1 2 . . . . 173 Influence Increases 2930 | 10 179 60 . 115 733 342 75 . 30 . . . 39 14 110 165 . 250 808 Destroy 0b10 Robot/C 1060 | . 120 40 . 80 440 220 . . 20 . . . . . 100 20 . . 20 Destroy 0b10 Robot/NC 195 | 10 20 10 . . 55 25 . . . . . . 25 10 . . . 10 30 Destroy Leader 278 | . 24 10 . 20 112 66 . . 10 . . . 2 2 10 10 . . 12 Allied During Kill 3 | . . . . . 3 . . . . . . . . . . . . . . Successful Hack 70 | . . . . . 23 . 15 . . . . . . . . . . . 32 Select Force Hacks 60 | . . . . . . . 60 . . . . . . . . . . . . Disable Machine 120 | . . . . 15 45 30 . . . . . . . . . . . . 30 Destroy Structure 109 | . . . . . 40 1 . . . . . . 12 2 . . . . 54 Advance Influence 150 | . . . . . . . . . . . . . . . . . . . 150 Partial Spotted 45 | . . . . . . . . . . . . . . . . . . . 45 Lose Combat Pursuer 840 | . 15 . . . 15 . . . . . . . . . . 135 . 240 435 Influence Decreases 2599 | 10 133 106 . 115 677 296 177 . 30 . . . 39 14 110 70 95 70 657 Entered New Map 279 | . . 29 . . . 33 63 . . . . . . . . . 95 . 59 Time Decay 1925 | 10 133 77 . 105 492 263 114 . 30 . . . 39 14 110 70 . 40 428 Lost Part 200 | . . . . 10 20 . . . . . . . . . . . . 30 140 Lost Ally 45 | . . . . . 15 . . . . . . . . . . . . . 30 Purge Threat 150 | . . . . . 150 . . . . . . . . . . . . . . Squads Dispatched 14 | . 1 . . . 3 1 . . . . . 1 3 . . . . 1 4 Investigation 2 | . 1 . . . . 1 . . . . . . . . . . . . . Extermination 4 | . . . . . . . . . . . . . 1 . . . . . 3 Reinforcement 4 | . . . . . . . . . . . . 1 2 . . . . . 1 Assault 1 | . . . . . . . . . . . . . . . . . . 1 . Garrison 3 | . . . . . 3 . . . . . . . . . . . . . . Intercept . | . . . . . . . . . . . . . . . . . . . . Searches Triggered . | . . . . . . . . . . . . . . . . . . . . Construction Impeded 1 | . . . . . . . . . . . . . 1 . . . . . . Haulers Reinforced . | . . . . . . . . . . . . . . . . . . . . Active Scanning Responses . | . . . . . . . . . . . . . . . . . . . . Cargo Convoy Interrupts . | . . . . . . . . . . . . . . . . . . . . Stealth | -11 -10 -10 -10 -9 -8 -8 -8 -8 -6 -6 -6 -6 -5 -4 -4 -4 -4 -3 -3 --------- Run | Yrd Mat Min Exi Min Mat Sto Rec Scr Fac Was Fac DSF Fac Fac Upp Upp War Pro Res Distress Signals 6 | . 1 . . . . 2 . . . . . . . . . . . . 3 Communications Jammed . | . . . . . . . . . . . . . . . . . . . . Distress Signals . | . . . . . . . . . . . . . . . . . . . . Times Spotted 163 | . 11 2 . 4 30 14 . . 1 6 . 4 2 2 5 10 1 27 44 Peak Tracking Total 20 | . 2 2 . 2 7 3 . . 1 6 . 4 1 2 4 5 1 12 20 Tactical Retreats 22 | . 1 . . . 1 . . . . . . . . . . 3 . 4 13 Traps | -11 -10 -10 -10 -9 -8 -8 -8 -8 -6 -6 -6 -6 -5 -4 -4 -4 -4 -3 -3 ------- Run | Yrd Mat Min Exi Min Mat Sto Rec Scr Fac Was Fac DSF Fac Fac Upp Upp War Pro Res Traps Triggered 3 | . . . . . . 1 . . 1 . . . . . . . . . 1 Indirectly . | . . . . . . . . . . . . . . . . . . . . Trap Hack Attempts . | . . . . . . . . . . . . . . . . . . . . Triggered . | . . . . . . . . . . . . . . . . . . . . Disarmed . | . . . . . . . . . . . . . . . . . . . . Reprogrammed . | . . . . . . . . . . . . . . . . . . . . Reused . | . . . . . . . . . . . . . . . . . . . . Traps Extracted . | . . . . . . . . . . . . . . . . . . . . Installed . | . . . . . . . . . . . . . . . . . . . . Triggered . | . . . . . . . . . . . . . . . . . . . . Machines | -11 -10 -10 -10 -9 -8 -8 -8 -8 -6 -6 -6 -6 -5 -4 -4 -4 -4 -3 -3 ---------- Run | Yrd Mat Min Exi Min Mat Sto Rec Scr Fac Was Fac DSF Fac Fac Upp Upp War Pro Res Machines Disabled 10 | . 2 . . 1 3 2 . . . . . . . . . . . . 2 Max in Single Turn 1 | . 1 . . 1 1 1 . . . . . . . . . . . . 1 Garrison Access 1 | . . . . . . . . . . . . . . . . . . . 1 Machines Repaired . | . . . . . . . . . . . . . . . . . . . . Machines Dismantled . | . . . . . . . . . . . . . . . . . . . . Machines Sabotaged . | . . . . . . . . . . . . . . . . . . . . Overloaded Fab Kills . | . . . . . . . . . . . . . . . . . . . . Hacking | -11 -10 -10 -10 -9 -8 -8 -8 -8 -6 -6 -6 -6 -5 -4 -4 -4 -4 -3 -3 --------- Run | Yrd Mat Min Exi Min Mat Sto Rec Scr Fac Was Fac DSF Fac Fac Upp Upp War Pro Res Machines Accessed 43 | . 2 . 1 1 7 3 8 . . . 1 . 1 3 . 1 8 . 7 Terminals 24 | . 2 . . . 5 2 6 . . . 1 . 1 2 . . . . 5 Fabricators . | . . . . . . . . . . . . . . . . . . . . Repair Stations . | . . . . . . . . . . . . . . . . . . . . Recycling Units 2 | . . . . . . . 2 . . . . . . . . . . . . Scanalyzers 1 | . . . . . 1 . . . . . . . . . . . . . . Garrison Access 5 | . . . . . 1 1 . . . . . . . 1 . . . . 2 Total Hacks 94 | . 7 . 1 1 22 4 20 . . . 2 . 1 7 . 1 16 . 12 Successful 51 | . 4 . 1 1 11 1 9 . . . 1 . . 2 . 1 16 . 4 Failed 41 | . 3 . . . 10 3 10 . . . 1 . 1 5 . . . . 8 Catastrophic 6 | . . . . . 2 . 1 . . . . . . 1 . . . . 2 Database Lockouts 2 | . . . . . 1 . 1 . . . . . . . . . . . . Manual 56 | . 7 . 1 . 11 2 19 . . . . . 1 5 . . . . 10 Terminals 58 | . 7 . . . 14 2 17 . . . 2 . 1 5 . . . . 10 Fabricators . | . . . . . . . . . . . . . . . . . . . . Repair Stations . | . . . . . . . . . . . . . . . . . . . . Recycling Units 3 | . . . . . . . 3 . . . . . . . . . . . . Scanalyzers 3 | . . . . . 3 . . . . . . . . . . . . . . Garrison Access 11 | . . . . . 5 2 . . . . . . . 2 . . . . 2 Terminal Hacks 27 | . . . 1 1 2 1 3 . . . 1 . . 1 . 1 16 . . Record 14 | . . . . . . . . . . . . . . . . . 14 . . Robot Analysis 2 | . . . . . 1 . 1 . . . . . . . . . . . . Open Door 5 | . . . . 1 . 1 . . . . . . . . . 1 2 . . Open DSF 1 | . . . . . . . . . . . 1 . . . . . . . . Branch Access Points 1 | . . . . . . . . . . . . . . 1 . . . . . Terminal Index 1 | . . . . . . . 1 . . . . . . . . . . . . Alert Level 1 | . . . . . . . 1 . . . . . . . . . . . . Unreport Threat 1 | . . . . . 1 . . . . . . . . . . . . . . Proto ID Catalog 1 | . . . 1 . . . . . . . . . . . . . . . . Fabricator Hacks . | . . . . . . . . . . . . . . . . . . . . Repair Station Hacks . | . . . . . . . . . . . . . . . . . . . . Recycling Unit Hacks . | . . . . . . . . . . . . . . . . . . . . Scanalyzer 2 | . . . . . 2 . . . . . . . . . . . . . . Retrieve Study 2 | . . . . . 2 . . . . . . . . . . . . . . Garrison Access Hacks 2 | . . . . . . . . . . . . . . . . . . . 2 Unlock Access 1 | . . . . . . . . . . . . . . . . . . . 1 Seal Access 1 | . . . . . . . . . . . . . . . . . . . 1 Unauthorized Hacks 20 | . 4 . . . 7 . 6 . . . . . . 1 . . . . 2 Terminals 18 | . 4 . . . 7 . 4 . . . . . . 1 . . . . 2 Assimilate 1 | . . . . . . . . . . . . . . . . . . . 1 Botnet 12 | . 2 . . . 4 . 4 . . . . . . 1 . . . . 1 Skim 5 | . 2 . . . 3 . . . . . . . . . . . . . . Fabricators . | . . . . . . . . . . . . . . . . . . . . Repair Stations . | . . . . . . . . . . . . . . . . . . . . Recycling Units 2 | . . . . . . . 2 . . . . . . . . . . . . Tunnel 2 | . . . . . . . 2 . . . . . . . . . . . . Scanalyzers . | . . . . . . . . . . . . . . . . . . . . Garrison Access . | . . . . . . . . . . . . . . . . . . . . Data Cores Recovered 2 | . . . . . 1 . . . . . . . . 1 . . . . . Used 1 | . . . . . 1 . . . . . . . . . . . . . . Hacking Detections 23 | . 2 . . . 5 4 4 . . . 1 . 1 3 . . . . 3 Full Trace Events 1 | . . . . . 1 . . . . . . . . . . . . . . Feedback Events . | . . . . . . . . . . . . . . . . . . . . Feedback Blocked . | . . . . . . . . . . . . . . . . . . . . Robot Schematics Acquired . | . . . . . . . . . . . . . . . . . . . . Robots Built . | . . . . . . . . . . . . . . . . . . . . Authchips . | . . . . . . . . . . . . . . . . . . . . Time . | . . . . . . . . . . . . . . . . . . . . Total Robot Build Rating . | . . . . . . . . . . . . . . . . . . . . Part Schematics Acquired . | . . . . . . . . . . . . . . . . . . . . Parts Built . | . . . . . . . . . . . . . . . . . . . . Authchips . | . . . . . . . . . . . . . . . . . . . . Time . | . . . . . . . . . . . . . . . . . . . . Total Part Build Rating . | . . . . . . . . . . . . . . . . . . . . Part Studies Acquired 2 | . . . . . 2 . . . . . . . . . . . . . . Parts Repaired . | . . . . . . . . . . . . . . . . . . . . Time . | . . . . . . . . . . . . . . . . . . . . Parts Recycled . | . . . . . . . . . . . . . . . . . . . . Recycled Matter . | . . . . . . . . . . . . . . . . . . . . Retrieved Matter . | . . . . . . . . . . . . . . . . . . . . Retrieved Components . | . . . . . . . . . . . . . . . . . . . . Parts Scanalyzed . | . . . . . . . . . . . . . . . . . . . . Part Schematics Acquired . | . . . . . . . . . . . . . . . . . . . . Parts Damaged . | . . . . . . . . . . . . . . . . . . . . Bothacking | -11 -10 -10 -10 -9 -8 -8 -8 -8 -6 -6 -6 -6 -5 -4 -4 -4 -4 -3 -3 ------------ Run | Yrd Mat Min Exi Min Mat Sto Rec Scr Fac Was Fac DSF Fac Fac Upp Upp War Pro Res Used RIF Installer . | . . . . . . . . . . . . . . . . . . . . Robots Hacked . | . . . . . . . . . . . . . . . . . . . . Non-combat . | . . . . . . . . . . . . . . . . . . . . Combat . | . . . . . . . . . . . . . . . . . . . . Robot Hacks Applied . | . . . . . . . . . . . . . . . . . . . . Relay Couplers Released . | . . . . . . . . . . . . . . . . . . . . Fabnet Peak Effective % . | . . . . . . . . . . . . . . . . . . . . Robots Rewired 5 | . . . . . . . . . . . . . . . . . 5 . . Allies Hacked . | . . . . . . . . . . . . . . . . . . . . Hacks Repelled . | . . . . . . . . . . . . . . . . . . . . Allies | -11 -10 -10 -10 -9 -8 -8 -8 -8 -6 -6 -6 -6 -5 -4 -4 -4 -4 -3 -3 -------- Run | Yrd Mat Min Exi Min Mat Sto Rec Scr Fac Was Fac DSF Fac Fac Upp Upp War Pro Res Total Allies 10 | . . . . 3 . . . . . 1 . . . . . . 5 . 1 Largest Group 5 | . . . . 3 3 . . . . 1 . . . . . . 5 . 1 Highest-Rated Group 281 | . . . . 40 40 . . . . 31 . . . . . . 281 . 26 Highest-Rated Ally 64 | . . . . 16 16 . . . . 31 . . . . . . 64 . 26 Total Orders 24 | . . . . . 4 1 1 2 1 . . . 3 . 3 5 . 1 3 EXPLORE 18 | . . . . . 3 1 1 1 1 . . . 2 . 3 2 . 1 3 RETURN 6 | . . . . . 1 . . 1 . . . . 1 . . 3 . . . Ally Attacks 26 | . . . . . 21 . . . . 5 . . . . . . . . . Total Damage 337 | . . . . . 253 . . . . 84 . . . . . . . . . Kills 2 | . . . . . 2 . . . . . . . . . . . . . . Allies Corrupted . | . . . . . . . . . . . . . . . . . . . . Allies Melted . | . . . . . . . . . . . . . . . . . . . . Intel | -11 -10 -10 -10 -9 -8 -8 -8 -8 -6 -6 -6 -6 -5 -4 -4 -4 -4 -3 -3 ------- Run | Yrd Mat Min Exi Min Mat Sto Rec Scr Fac Was Fac DSF Fac Fac Upp Upp War Pro Res Active Infowar (turns) 5 | . . . . . . . . . . . . . . . . . . . 5 Sensors 5 | . . . . . . . . . . . . . . . . . . . 5 Robot Analysis Total 2 | . . . . . 1 . 1 . . . . . . . . . . . . Derelict Logs Recovered 2 | . . 1 . 1 . . . . . . . . . . . . . . . Drone Launches 20 | . . . . . 4 1 1 1 1 . . . 1 . 4 3 . 1 3 Drone Recoveries 17 | . . . . . 4 1 1 1 1 . . . 1 . 3 3 . 1 1 Exploration | -11 -10 -10 -10 -9 -8 -8 -8 -8 -6 -6 -6 -6 -5 -4 -4 -4 -4 -3 -3 ------------- Run | Yrd Mat Min Exi Min Mat Sto Rec Scr Fac Was Fac DSF Fac Fac Upp Upp War Pro Res Turns Passed 9071 | 58 756 355 339 534 1440 623 1171 1167 114 105 18 39 367 74 249 224 220 174 1044 Spaces Moved 7661 | 20 393 206 212 295 600 253 440 374 55 113 32 80 755 214 332 283 640 495 1869 Core 149 | . . . . . . . . . . 72 32 45 . . . . . . . Treads 2889 | 20 393 206 212 295 600 253 440 374 55 41 . . . . . . . . . Legs . | . . . . . . . . . . . . . . . . . . . . Wheels . | . . . . . . . . . . . . . . . . . . . . Hover . | . . . . . . . . . . . . . . . . . . . . Flight 4623 | . . . . . . . . . . . . 35 755 214 332 283 640 495 1869 Fastest Speed 6 | 160 160 160 160 160 160 170 210 213 165 50 50 34 20 20 20 20 20 20 6 Average Speed 81 | 160 160 160 160 160 167 183 212 213 165 92 50 43 20 20 21 20 20 20 25 Slowest Speed 213 | 160 160 160 160 160 170 210 213 213 165 213 50 50 34 20 100 20 20 20 115 Overloaded Moves 113 | . . . . . . . . . . . . . . . . . . . 113 Propulsion Burnouts . | . . . . . . . . . . . . . . . . . . . . Robots Hopped 14 | . . . . . . . . . . . . 1 4 . . . 2 . 7 Potential Cave-ins . | . . . . . . . . . . . . . . . . . . . . Cave-ins Triggered . | . . . . . . . . . . . . . . . . . . . . Exploration Rate (%) 50 | 3 60 48 61 73 56 48 91 59 3 72 1 85 28 6 77 58 70 77 41 Regions Visited 19 Branch Regions 10 Pre-discovered Areas 4 | . . 1 . . . . 2 . . . . . . . . . 1 . . Known Exits Taken 6 | . . . . . . . . . . . 1 . 1 1 1 1 . 1 . Unknown Exits Taken 10 | 1 1 1 1 1 1 1 1 1 . . . . . . . . 1 . . Scrap Searched 13 | . . 1 . 1 . . . 3 . . . . . . 3 1 . 4 . Spaces Dug 26 | . . . . . . . . . . . . . . . . . . . 26 Terrain Destroyed 92 | . . . . . 48 . . . . . . . 6 1 4 3 . 2 28 Melee 26 | . . . . . . . . . . . . . . . . . . . 26 Projectile 19 | . . . . . 1 . . . . . . . 6 1 4 3 . 2 2 AOE 47 | . . . . . 47 . . . . . . . . . . . . . . Terrain Rammed . | . . . . . . . . . . . . . . . . . . . . Walls Destroyed . | . . . . . . . . . . . . . . . . . . . . Machines Disabled . | . . . . . . . . . . . . . . . . . . . . Actions | -11 -10 -10 -10 -9 -8 -8 -8 -8 -6 -6 -6 -6 -5 -4 -4 -4 -4 -3 -3 --------- Run | Yrd Mat Min Exi Min Mat Sto Rec Scr Fac Was Fac DSF Fac Fac Upp Upp War Pro Res Total 9966 | 37 454 216 212 328 909 350 674 745 75 112 33 81 938 235 495 432 729 558 2353 Wait 1820 | 4 16 2 . 3 179 43 233 367 10 . . . 139 14 150 136 63 56 405 Move 7619 | 19 392 205 211 294 599 252 439 373 55 112 31 77 746 213 331 282 635 494 1859 Hop 10 | . . . . . . . . . . . . 1 4 . . . 2 . 3 Pick Up 26 | . 4 1 1 4 4 5 . 4 . . . . 3 . . . . . . Fast Attach 64 | . 1 . . 1 14 3 . . 1 . 1 3 21 3 . . 2 . 14 Attach 29 | 3 1 . . 3 7 1 . . 4 . . . 4 . . . . 1 5 Detach 17 | 3 1 . . . 6 . . . 1 . . . 2 . . . . . 4 Swap 57 | . 2 . . 3 20 5 2 1 2 . . . . . 9 7 . 2 4 Drop 57 | 2 2 . . 5 16 7 . . . . 1 . 10 1 . . 2 . 11 Fire 188 | 6 35 8 . 15 64 33 . . 2 . . . 4 2 5 7 . 5 2 Melee 54 | . . . . . . 1 . . . . . . 5 2 . . . . 46 Ram . | . . . . . . . . . . . . . . . . . . . . Kick . | . . . . . . . . . . . . . . . . . . . . Crush . | . . . . . . . . . . . . . . . . . . . . Escape Stasis . | . . . . . . . . . . . . . . . . . . . . Rewire 25 | . . . . . . . . . . . . . . . . . 25 . . Trap . | . . . . . . . . . . . . . . . . . . . . Miscellaneous . | . . . . . . . . . . . . . . . . . . . . Route ------- -11/Scrapyard -10/Materials (discovered 6 exits: [*Mat x3] / [*Min x2] / [*Sub]) -10/Mines (discovered 2 exits: [*Mat] / *Exi) -10/Exiles (discovered 2 exits: *Min x2) -9/Mines -8/Materials (discovered 3 exits: *Fac / *Sto x2) -8/Storage -8/Recycling -8/Scraptown -6/Factory -6/Waste -6/Factory -6/DSF -5/Factory -4/Factory (discovered 3 exits: *Upp x2 / Arm) -4/Upper Caves -4/Upper Caves (discovered 2 exits: *Res / *War) -4/Warlord -3/Proximity Caves -3/Research (discovered 1 exit: Gar) History --------- Turn | Location | Event 26 | -11/Scrapyard | Discovered new exit (range 3) 59 | -11/Scrapyard | Entered Materials 60 | -10/Materials | Met a group of wandering Federalists 214 | -10/Materials | Discovered new exit (range 7) 243 | -10/Materials | Discovered new exit (range 5) 305 | -10/Materials | Discovered new exit (range 16) 306 | -10/Materials | Build established: Mutant 405 | -10/Materials | Discovered new exit (range 8) 662 | -10/Materials | Discovered new exit (range 16) 683 | -10/Materials | Discovered new exit (range 9) 815 | -10/Materials | Entered Mines 908 | -10/Mines | Learned Materials stockpile data 997 | -10/Mines | Learned location of Storage (-8) 1034 | -10/Mines | Discovered new exit (range 12) 1156 | -10/Mines | Found a hidden stash of uninstalled traps 1164 | -10/Mines | Deemed a non-threat by the Exiles lab entrance 1164 | -10/Mines | Discovered new exit (range 5) 1170 | -10/Mines | Entered Exiles 1196 | -10/Exiles | Discovered new exit (range 15) 1214 | -10/Exiles | Met 8R-AWN 1236 | -10/Exiles | Met EX-HEX 1281 | -10/Exiles | Met EX-BIN 1298 | -10/Exiles | Aligned with FarCom system 1300 | -10/Exiles | Given EX-Vault access code 1337 | -10/Exiles | Opened EX-Vault 1350 | -10/Exiles | Found Field Lobotomy Kit 1379 | -10/Exiles | Warned to stay clear of 0b10 Research branches 1403 | -10/Exiles | Exiles lab attacked by MAIN.C 1491 | -10/Exiles | Discovered new exit (range 14) 1509 | -10/Exiles | Left Exiles lab with Field Lobotomy Kit 1509 | -10/Exiles | Entered Mines 1522 | -9/Mines | Met a Derelict bent on vengeance 1601 | -9/Mines | Received a Rocket Launcher from a helpful Derelict 1689 | -9/Mines | Learned 2 Materials zone layouts 1955 | -9/Mines | Assisted by bots powering up and referring to "LRC-V3" 1997 | -9/Mines | Discovered new exit (range 6) 2018 | -9/Mines | Found the Drone Emporium 2026 | -9/Mines | Found Prototype Device 2043 | -9/Mines | Entered Materials 2043 | -8/Materials | Accompanied by 3 allies 2043 | -8/Materials | Evolved 4 slots: Propulsion x2, Utility x2 2043 | -8/Materials | Identified Sensor Drone Bay 2050 | -8/Materials | Discovered new exit (range 15) 2316 | -8/Materials | Build established: Scavenger-Mutant 2743 | -8/Materials | Central database locked down 2770 | -8/Materials | Build established: Mutant 2948 | -8/Materials | Discovered new exit (range 9) 2993 | -8/Materials | Identified exit to Factory 3152 | -8/Materials | Discovered new exit (range 11) 3154 | -8/Materials | Garrison activated, responded to threat 3483 | -8/Materials | Entered Storage 4005 | -8/Storage | Used back door to open Recycling access 4005 | -8/Storage | Discovered new exit (range 5) 4106 | -8/Storage | Entered Recycling 5228 | -8/Recycling | Scanned before Scraplab entrance 5258 | -8/Recycling | Entered Scraplab 5275 | -8/Recycling | Discovered new exit (range 2) 5277 | -8/Recycling | Entered Scraptown 5459 | -8/Scraptown | Discovered new exit (range 76) 6042 | -8/Scraptown | Visited Symbiants 6089 | -8/Scraptown | Visited Red Mages 6138 | -8/Scraptown | Turned away by UFD registrar 6168 | -8/Scraptown | Visited TADAMA 6232 | -8/Scraptown | Visited Junk Repository 6444 | -8/Scraptown | Entered Factory 6444 | -6/Factory | Evolved 4 slots: Propulsion x2, Weapon x2 6558 | -6/Factory | Sucked down chute 6558 | -6/Factory | Entered Waste 6559 | -6/Waste | Met a frightened Derelict 6569 | -6/Waste | Spotted C-40 Crusher 6573 | -6/Waste | EMP discharged 6587 | -6/Waste | Spotted C-40 Crusher 6607 | -6/Waste | Spotted C-40 Crusher 6608 | -6/Waste | Spotted C-40 Crusher 6622 | -6/Waste | Crushed by Compactor (1 part destroyed, 2 dropped) 6626 | -6/Waste | Crushed by Compactor (1 part destroyed, 1 dropped) 6627 | -6/Waste | Released all parts (10) 6634 | -6/Waste | Spotted C-40 Crusher 6642 | -6/Waste | Spotted C-40 Crusher 6658 | -6/Waste | Discovered new exit (range 11) 6663 | -6/Waste | Entered Factory 6681 | -6/Factory | Identified exit to DSF 6681 | -6/Factory | Entered DSF 6711 | -6/DSF | Additional patrols routed to DSF 6715 | -6/DSF | Discovered new exit (range 15) 6720 | -6/DSF | Entered Factory 6720 | -5/Factory | Evolved 2 slots: Utility x2 6994 | -5/Factory | Discovered new exit (range 64) 6997 | -5/Factory | Identified exit to Factory 7087 | -5/Factory | Entered another Factory area 7087 | -4/Factory | Evolved 2 slots: Utility x2 7089 | -4/Factory | Found Prototype Hackware 7089 | -4/Factory | Identified Exp. System Shield 7157 | -4/Factory | Identified exit to Upper Caves 7157 | -4/Factory | Identified exit to Armory 7161 | -4/Factory | Entered Upper Caves 7394 | -4/Upper Caves | Discovered new exit (range 8) 7409 | -4/Upper Caves | Identified exit to Upper Caves 7410 | -4/Upper Caves | Entered another Upper Caves area 7410 | -4/Upper Caves | Accompanied by 1 ally 7411 | -4/Upper Caves | Encountered a Warlord checkpoint 7412 | -4/Upper Caves | Discovered new exit (range 7) 7414 | -4/Upper Caves | Identified exit to Research 7518 | -4/Upper Caves | Spotted B-86 Titan 7588 | -4/Upper Caves | Discovered new exit (range 25) 7632 | -4/Upper Caves | Identified exit to Warlord 7634 | -4/Upper Caves | Entered Warlord 7658 | -4/Warlord | Learned location of Quarantine (-2) 7658 | -4/Warlord | Learned Quarantine security intel 7658 | -4/Warlord | Learned Research terminal intel 7699 | -4/Warlord | Opened side exit 7775 | -4/Warlord | Visited the Vortex Lab 7777 | -4/Warlord | Found Prototype Energy Gun 7777 | -4/Warlord | Identified Vortex Shotgun 7780 | -4/Warlord | Warlord's base attacked by MAIN.C 7799 | -4/Warlord | Met Warlord 7851 | -4/Warlord | Discovered new exit (range 9) 7854 | -4/Warlord | Entered Proximity Caves 7857 | -3/Proximity Caves | Spotter reported a threat 7980 | -3/Proximity Caves | Spotted B-86 Titan 7984 | -3/Proximity Caves | Attracted the attention of an 0b10 outpost 8019 | -3/Proximity Caves | Lost 4 parts (1n2u1w) 8026 | -3/Proximity Caves | Discovered exit to Research (range 9) 8028 | -3/Proximity Caves | Entered Research 8028 | -3/Research | Evolved 2 slots: Propulsion x1, Utility x1 8029 | -3/Research | Loaded intel: 20 terminal locations 8192 | -3/Research | Build established: Hacker-Sprinter 8514 | -3/Research | Spotted B-86 Titan 8721 | -3/Research | Identified exit to Garrison 8752 | -3/Research | Spotted B-86 Titan 8957 | -3/Research | Lost 8 parts (1p5n1u1w) 9033 | -3/Research | Core integrity fell below 50% 9072 | -3/Research | Self-destructed Last Messages --------------- 08985_ Penetrated by Slug. 08987_ K-01 Serf collects debris. 08988_ P-80 Master resets P-80 Master, system corruption cleaned. 08988_ K-01 Serf destroyed. 08988_ K-01 Serf collects debris. 08988_ Axe destroyed. 08990_ NEXZ7XCE3EGGJ5SO22AF=6 08992_ K-01 Serf collects debris. 08993_ C-30 ARC bursts open, deploying its payload. 08993_ P-80 Master unfolds itself. 08996_ K-01 Serf collects debris. 08999_ W-44 Eye sends out distress signal. 09006_ Acquired Impulse Thruster Array. 09017_ K-01 Serf cleans the Reaction Chamber. 09019_ K-01 Serf destroyed. 09027_ P-80 Master resets U-05 Engineer, system corruption cleaned. 09035_ System corrupted: Energy discharge (-8). 09052_ ALERT: Cargo convoy en route, clear transfer corridor. 09061_ System corrupted: IFF burst signal emitted. 09063_ Impulse Thruster destroyed. Map ----- +----------------------------------------------------+ | ?????????????????????????????????????????????????? | | ?????????????????????????????????????????????????? | | ?????????????????????????????????????????????????? | | ????????????????????????"""T"""??????????????????? | | ????????????????????????"""?"""??????????????????? | | ?????????????????????????????????????????????????? | | ?????????????????????????????????????????????????? | | ""T"""???????????????????????????????????????????? | | ?????????????????????????????????????????????????? | | #???????????????? ??????????????????????????????? | | #?????????????? ??????????????????????????????? | | ############# ?????????????????????????????? | | ?????????????????????????????? | | ### ????????????????????????????? | | #?# ????????????????????????????? | | #?# ????????????????????????????? | | ??# ##############???????????????????????????????? | | ??# # #????????????????????????????????????? | | ??# + #????????????????????????????????????? | | ??# # #????????????????????????????????????? | | ??# # #?????????########???????????????????? | | ??# # #?????????# #???????????????????? | | ??# #########?????????# #???????????????????? | | ??# ################### #???????????????????? | | ??# p + ! #???????????????????? | | ??#############+####### @ #???????????????????? | | ?????????????? ?????# #???????????????????? | | ?????????????? ?????########???????????????????? | | ????????????? = ???????????????????????????????? | | ????????????? ???????????????????????????????? | | ????????????# ??????????????????????????????? | | ????????????# ??????????????????????????????? | | ????????????########?????????????????????????????? | | ?????????????????????????????????????????????????? | | ?????????????????????????????????????????????????? | | ?????????????????????????????????????????????????? | | ?????????????????????????????????????????????????? | | ?????????????????????????????????????????????????? | | ?????????????????????????????????????????????????? | | | | | | | | | | | | | | | | | | | | | | | +----------------------------------------------------+ Best States ------------- Heat Dissipation 51 Energy Generation 37 Energy Capacity 310 Matter Stores 300 Matter Capacity 300 Sight Range 16 Robot Scan Range 16 Terrain Scan Density 10 Power Amplification 80 Armor Coverage 225 Resistance: TH 25 Resistance: EM 15 Weapon Shielding 90 Evasion (%) 78 Targeting Accuracy 8 Melee Accuracy 24 Recoil Reduction 6 Offensive Hacking 30 Defensive Hacking 26 Item Schematics ----------------- None Robot Schematics ------------------ None Fabricated ------------ Nothing Repaired ---------- Nothing Studied --------- Arm. Treads | -8/Materials | Hacked Grenade Launcher | -8/Materials | Hacked Alien Tech Used ----------------- None Achievements -------------- A Powerful Ally? Speed Demon Whoosh! Challenges ------------ None Game ------ Seed EfficiencyLightningArmor Manual? 0 Play Time 01:20:03 Cumulative 78.8 hours Start 2026.03.20 @ 06:35:16 End 2026.03.20 @ 07:54:06 Sessions 1 Manual Loads 0 Difficulty Rogue Special Mode None Game No. 122 Rogue 122 Adventurer 0 Explorer 0 Win Type - Total 3 Types 2/0/0/1/0/0/0/0/0/0 Lore% 47 Gallery% 46 Achievement% 36 Wizard Run 0 Options --------- Layout 0 ASCII 1 Keyboard 1 Movement Numpad Keybinds 0 Fullscreen 1 Font 18/VGA_Max Map View 76x50 Zoom Use 0% Tactical HUD 1 Map Filters NONE Filters NONE Steam 1 RUN: 70833384-e018-4ba8-84c2-5a5074e30856